Cogmind - Beta 15 *** ADVENTURER MODE // 2025.06.05 @ 22:09:34 Player: triibiis Result: Destroyed by Y-45 Defender with Beam Rifle Performance ------------- Evolutions (1) 500 Regions Visited (2) 400 Robots Destroyed (17) 85 Value Destroyed (436) 436 Prototype IDs (0) 0 Alien Tech Used (0) 0 Bonus (0) 0 TOTAL SCORE: 1421 Bonus ------- None Cogmind --------- Core Integrity 0/400 Matter 219/300 Energy 100/100 System Corruption 2% Temperature Cool (9) Movement Core (350) Ox6 Location -9/Materials Parts ------- > --- POWER (1) -------- (None) > --- PROPULSION (3) --- (None) > --- UTILITY (2) ------ Large Storage Unit Improved Targeting Computer > --- WEAPON (3) ------- (None) > --- INVENTORY (15) --- Wheel Compact Wheel Improved Targeting Computer Peak State ------------ > --- POWER ------------ Light Ion Engine > --- PROPULSION ------- Compact Wheel Compact Wheel Compact Wheel > --- UTILITY ---------- Large Storage Unit Improved Targeting Computer > --- WEAPON ----------- Grenade Launcher Grenade Launcher Mining Laser > --- INVENTORY -------- Wheel Compact Wheel Compact Wheel Medium Laser Assault Rifle Mining Laser [Rating: 10] Favorites ----------- Power Light Ion Engine Engine Light Ion Engine Propulsion Compact Wheel Wheel Compact Wheel Utility Large Storage Unit Device Tractor Beam Storage Large Storage Unit Processor Improved Targeting Computer Weapon Grenade Launcher Energy Gun Medium Laser Ballistic Gun Light Assault Rifle Launcher Grenade Launcher Special Weapon Mining Laser Build | -11 -10 -9 ------- Run | Yrd Mat Mat Slots Evolved 2 | . . 2 Power . | . . . Propulsion 1 | . . 1 Utility . | . . . Weapon 1 | . . 1 Parts Attached 19 | 6 4 9 Power 2 | 1 . 1 Engine 2 | 1 . 1 Core . | . . . Reactor . | . . . Propulsion 6 | 2 . 4 Treads . | . . . Leg . | . . . Wheel 6 | 2 . 4 Hover . | . . . Flight . | . . . Utility 4 | 1 2 1 Device 1 | . 1 . Storage 2 | 1 1 . Processor 1 | . . 1 Hackware . | . . . Protection . | . . . Artifact . | . . . Weapon 7 | 2 2 3 Energy Gun 1 | . . 1 Energy Cannon . | . . . Ballistic Gun 2 | 2 . . Ballistic Cannon . | . . . Launcher 2 | . 2 . Special Weapon 2 | . . 2 Impact Weapon . | . . . Slashing Weapon . | . . . Piercing Weapon . | . . . Special Melee Weapon . | . . . Unidentified Prototypes . | . . . Parts Lost 11 | . 2 9 Power 2 | . 1 1 Propulsion 4 | . 1 3 Utility . | . . . Weapon 5 | . . 5 Highest Loss Streak 4 | . 2 4 To Critical Strikes . | . . . Average Backups 6 | 2 8 5 Power . | . 1 . Propulsion 3 | . 4 2 Utility . | . . . Weapon 1 | . 2 1 Tool/Special . | . . . Unused Backups 4 | . 2 2 Power . | . . . Propulsion 3 | . 2 1 Utility 1 | . . 1 Weapon . | . . . Tool/Special . | . . . Average Slot Usage (%) 87 | . 96 79 Engine 9 | . 12 6 Wheel 25 | . 27 24 Device 7 | . 12 2 Storage 12 | . 14 11 Processor 4 | . . 8 Energy Gun 1 | . . 3 Ballistic Gun 8 | . 14 3 Launcher 12 | . 14 11 Special Weapon 4 | . . 7 Peak Build Rating 10 | 6 8 10 Average Rating 7 | 4 7 8 On Entrance 4 | . 6 6 Naked Turns . | . . . Heaviest Build 31 | 11 28 31 Greatest Support 48 | 26 26 48 Greatest Overweight (x) 7 | . 2 7 Average Overweight (x) . | . . . Largest Inventory Capacity 15 | 8 15 15 Average Capacity 13 | 6 12 15 Most Carried 10 | 4 10 9 Average Carried 6 | 2 8 5 Final Capacity 15 | 8 15 15 Final Carried 10 | 4 10 3 Class Distribution -------------------- 66% | Mutant 25% | Bomber 7% | Gunner Dominant Class ---------------- Mutant | -10/Materials Bomber | -9/Materials Resources | -11 -10 -9 ----------- Run | Yrd Mat Mat Matter Collected 435 | 225 131 79 Remotely 131 | . 131 . Salvage Created 247 | . 158 89 Parts 22 | . 13 9 Haulers Intercepted . | . . . Recyclers Shooed . | . . . Parts Field Recycled . | . . . Retrieved Matter . | . . . Parts Self-Destructed . | . . . Prevented . | . . . Kills | -11 -10 -9 ------- Run | Yrd Mat Mat Combat Hostiles Destroyed 11 | . 5 6 Guns 2 | . . 2 AOE 9 | . 5 4 Classes Destroyed 5 | . 2 3 Worker 1 | . . 1 Tunneler 1 | . . 1 Watcher 4 | . 3 1 Swarmer 4 | . . 4 Grunt 7 | . 5 2 Best Kill Streak 6 | . 3 6 Combat Bots Only 4 | . 2 4 Max Kills in Single Turn 3 | . 2 3 Gunslinging . | . . . Exploded 3 | . 2 3 Melee . | . . . Uniques/NPCs Destroyed . | . . . Combat | -11 -10 -9 -------- Run | Yrd Mat Mat Hostile Shots Fired 118 | . 17 101 Missed 24 | . 2 22 Hits 94 | . 15 79 Melee 4 | . . 4 Projectile 90 | . 15 75 Critical Strikes 4 | . . 4 Damage Taken 1196 | . 231 965 Core 471 | . 66 405 Absorbed by Shields . | . . . Ignored by Resistances 348 | . 69 279 Core Remaining (%) 86 | 100 73 . Volleys Fired 32 | . 12 20 Largest 3 | . 2 3 Hottest 160 | . 60 160 Shots Fired 51 | . 21 30 Gun 33 | . 11 22 Cannon . | . . . Launcher 17 | . 10 7 Special 1 | . . 1 Kinetic 24 | . 11 13 Thermal 10 | . . 10 Explosive 17 | . 10 7 Electromagnetic . | . . . Robot Hit Streak 11 | . 4 11 Robot Miss Streak 2 | . 2 1 Penetration Max . | . . . Secondary Targets . | . . . Shots Hit Robots 36 | . 13 23 Core Hits 35 | . 14 21 Critical Kills 1 | . 1 . Critical Parts Destroyed 1 | . . 1 Critical Strikes 2 | . 1 1 Destroy 2 | . 1 1 Melee Attacks . | . . . Impact . | . . . Slashing . | . . . Piercing . | . . . Sneak Attacks . | . . . Combat Hostiles . | . . . Follow-up Attacks . | . . . Damage Inflicted 1167 | . 397 770 Guns 268 | . 46 222 Cannons . | . . . Explosions 815 | . 351 464 Melee . | . . . Ramming 84 | . . 84 Kinetic 181 | . 46 135 Thermal 87 | . . 87 Explosive 815 | . 351 464 Electromagnetic . | . . . Impact . | . . . Slashing . | . . . Piercing . | . . . Highest Corruption 2 | . . 2 Average Corruption 2 | . . 2 Corruption Purged . | . . . Corruption Blocked . | . . . Effects 2 | . . 2 Message Errors 1 | . . 1 Energy Discharges 1 | . . 1 Overload Shots . | . . . Overflow Damage 11 | . 1 10 Projectiles . | . . . Explosions 11 | . 1 10 Melee . | . . . Knockbacks . | . . . Impact . | . . . Kinetic . | . . . Secondary . | . . . Self-Inflicted Damage 190 | . 49 141 Shots 10 | . 4 6 Rammed 17 | . . 17 Targets Rammed 17 | . . 17 Kicked . | . . . Crushed . | . . . Highest Temperature 45 | . 32 45 Average Temperature 11 | . 11 10 Received Heat Transfer 591 | . 111 480 Siege Activations . | . . . Martial Activations . | . . . Shielding Activations . | . . . Robots Disrupted . | . . . Combat Hostiles . | . . . Robots Corrupted . | . . . Combat Hostiles . | . . . Parts Fried . | . . . Impact Corruptions . | . . . Robots Melted . | . . . Combat Hostiles . | . . . Parts Melted . | . . . Heat Transferred 259 | . . 259 Parts Sabotaged . | . . . Parts Stolen . | . . . Parts Stripped . | . . . Power Chain Reactions . | . . . Alert | -11 -10 -9 ------- Run | Yrd Mat Mat Maximum Alert Level . | . . . Low Security (%) 100 | 100 100 100 Level 1 . | . . . Level 2 . | . . . Level 3 . | . . . Level 4 . | . . . Level 5 . | . . . High Security . | . . . Max Security . | . . . Peak Influence 145 | . 135 145 Initial 45 | . . 45 Average 46 | . 40 62 Influence Increases 484 | . 239 245 Destroy 0b10 Robot/C 220 | . 100 120 Destroy 0b10 Robot/NC 30 | . 15 15 Destroy Leader 48 | . 26 22 Disable Machine 54 | . 36 18 Destroy Structure 102 | . 62 40 Lose Combat Pursuer 30 | . . 30 Influence Decreases 419 | . 114 305 Entered New Map 80 | . . 80 Time Decay 229 | . 94 135 Lost Part 110 | . 20 90 Squads Dispatched 2 | . 1 1 Investigation 1 | . 1 . Extermination . | . . . Reinforcement 1 | . . 1 Assault . | . . . Garrison . | . . . Intercept . | . . . Searches Triggered . | . . . Construction Impeded . | . . . Haulers Reinforced . | . . . Active Scanning Responses . | . . . Cargo Convoy Interrupts . | . . . Stealth | -11 -10 -9 --------- Run | Yrd Mat Mat Distress Signals 3 | . 1 2 Communications Jammed . | . . . Distress Signals . | . . . Times Spotted 21 | . 7 14 Peak Tracking Total 6 | . 2 6 Tactical Retreats 1 | . . 1 Traps | -11 -10 -9 ------- Run | Yrd Mat Mat Traps Triggered 2 | . 2 . Indirectly . | . . . Trap Hack Attempts . | . . . Triggered . | . . . Disarmed . | . . . Reprogrammed . | . . . Reused . | . . . Traps Extracted . | . . . Installed . | . . . Triggered . | . . . Machines | -11 -10 -9 ---------- Run | Yrd Mat Mat Machines Disabled 6 | . 4 2 Max in Single Turn 1 | . 1 1 Machines Repaired . | . . . Machines Dismantled . | . . . Machines Sabotaged . | . . . Overloaded Fab Kills . | . . . Hacking | -11 -10 -9 --------- Run | Yrd Mat Mat Machines Accessed . | . . . Terminals . | . . . Fabricators . | . . . Repair Stations . | . . . Recycling Units . | . . . Scanalyzers . | . . . Garrison Access . | . . . Total Hacks . | . . . Successful . | . . . Failed . | . . . Catastrophic . | . . . Database Lockouts . | . . . Manual . | . . . Terminals . | . . . Fabricators . | . . . Repair Stations . | . . . Recycling Units . | . . . Scanalyzers . | . . . Garrison Access . | . . . Terminal Hacks . | . . . Fabricator Hacks . | . . . Repair Station Hacks . | . . . Recycling Unit Hacks . | . . . Scanalyzer . | . . . Garrison Access Hacks . | . . . Unauthorized Hacks . | . . . Terminals . | . . . Fabricators . | . . . Repair Stations . | . . . Recycling Units . | . . . Scanalyzers . | . . . Garrison Access . | . . . Data Cores Recovered . | . . . Used . | . . . Hacking Detections . | . . . Full Trace Events . | . . . Feedback Events . | . . . Feedback Blocked . | . . . Robot Schematics Acquired . | . . . Robots Built . | . . . Authchips . | . . . Time . | . . . Total Robot Build Rating . | . . . Part Schematics Acquired . | . . . Parts Built . | . . . Authchips . | . . . Time . | . . . Total Part Build Rating . | . . . Parts Repaired . | . . . Time . | . . . Parts Recycled . | . . . Recycled Matter . | . . . Retrieved Matter . | . . . Retrieved Components . | . . . Parts Scanalyzed . | . . . Part Schematics Acquired . | . . . Parts Damaged . | . . . Bothacking | -11 -10 -9 ------------ Run | Yrd Mat Mat Used RIF Installer . | . . . Robots Hacked . | . . . Non-combat . | . . . Combat . | . . . Robot Hacks Applied . | . . . Relay Couplers Released . | . . . Fabnet Peak Effective % . | . . . Robots Rewired . | . . . Allies Hacked . | . . . Hacks Repelled . | . . . Allies | -11 -10 -9 -------- Run | Yrd Mat Mat Total Allies . | . . . Largest Group . | . . . Highest-Rated Group . | . . . Highest-Rated Ally . | . . . Total Orders . | . . . Ally Attacks . | . . . Total Damage . | . . . Kills . | . . . Allies Corrupted . | . . . Allies Melted . | . . . Intel | -11 -10 -9 ------- Run | Yrd Mat Mat Active Infowar (turns) . | . . . Robot Analysis Total . | . . . Derelict Logs Recovered . | . . . Drone Launches . | . . . Drone Recoveries . | . . . Exploration | -11 -10 -9 ------------- Run | Yrd Mat Mat Turns Passed 663 | 67 282 314 Spaces Moved 474 | 65 239 170 Core 18 | 8 . 10 Treads . | . . . Legs . | . . . Wheels 456 | 57 239 160 Hover . | . . . Flight . | . . . Fastest Speed 50 | 50 90 100 Average Speed 103 | 84 99 116 Slowest Speed 400 | 90 110 400 Overloaded Moves . | . . . Propulsion Burnouts . | . . . Robots Hopped . | . . . Potential Cave-ins . | . . . Cave-ins Triggered . | . . . Exploration Rate (%) 22 | 4 40 23 Regions Visited 2 Branch Regions . Pre-discovered Areas . | . . . Known Exits Taken . | . . . Unknown Exits Taken 2 | 1 1 . Scrap Searched . | . . . Spaces Dug . | . . . Terrain Destroyed 109 | . 58 51 Melee . | . . . Projectile . | . . . AOE 109 | . 58 51 Terrain Rammed . | . . . Walls Destroyed . | . . . Machines Disabled . | . . . Actions | -11 -10 -9 --------- Run | Yrd Mat Mat Total 580 | 74 266 240 Wait 19 | . . 19 Move 472 | 64 238 170 Hop . | . . . Pick Up 12 | 4 7 1 Fast Attach 10 | 6 3 1 Attach 9 | . . 9 Detach 2 | . 1 1 Swap 2 | . 1 1 Drop 5 | . 4 1 Fire 32 | . 12 20 Melee . | . . . Ram 17 | . . 17 Kick . | . . . Crush . | . . . Escape Stasis . | . . . Rewire . | . . . Trap . | . . . Miscellaneous . | . . . Route ------- -11/Scrapyard -10/Materials (discovered 2 exits: [*Mat] / [*Min]) -9/Materials History --------- Turn | Location | Event 22 | -11/Scrapyard | Discovered new exit (range 16) 68 | -11/Scrapyard | Entered Materials 231 | -10/Materials | Discovered new exit (range 12) 304 | -10/Materials | Build established: Mutant 326 | -10/Materials | Discovered new exit (range 9) 350 | -10/Materials | Entered another Materials area 350 | -9/Materials | Evolved 2 slots: Propulsion x1, Weapon x1 559 | -9/Materials | Lost 4 parts (1p3w) 628 | -9/Materials | Lost 4 parts (3n1w) 629 | -9/Materials | Core integrity fell below 50% 656 | -9/Materials | Core integrity fell below 20% 664 | -9/Materials | Destroyed by Y-45 Defender with Beam Rifle Last Messages --------------- Mining Laser severed. Slammed into L-31 Rogue. U-05 Engineer lays Concrete. Slammed into G-34 Mercenary. Assault Rifle destroyed. System corrupted by crushing effect (+2). Com. Wheel destroyed. Slammed into G-34 Mercenary. Destabilizing: System interference. Imp. Targeting Computer temporarily disabled. Slammed into G-34 Mercenary. Com. Wheel severed. Slammed into G-34 Mercenary. W1,N7/0XVOBN8MWN QY26OH|R/MFIW| U-05 Engineer builds a Wall. System corrupted: Energy discharge (-20). Med. Laser destroyed. Slammed into Y-45 Defender. Destabilizing: Core damaged (-12). Slammed into Y-45 Defender. Map ----- +----------------------------------------------------+ | + ! #?? | | # = """ #?? | | # ############## ############# """ #?? | | # # # # # # # """ #?? | | # # ## #=# ## """"" / # | | ######## # ####=# ## """"" # + | | # # """"""" ## #%# ## """"" # """ #?? | | # + """"""" #### #### """"" # """ #?? | | # # """"""" #?## #### """"" # """ #?? | | # ##### ## """"""" #??# /|""""" # +?? | | # #???# ## """"""" #??#=#### """"" # #?? | | # #####+############?## #??# # #?? | | # # #????????## #??########## #####?? | | # # """" #????????## #???????????# #?????? | | # # """" #?????????# ####+###????# #?????? | | # # !! """" #?????????# / ## #?????? | | # + ! #?????????#g## # ?????? | | # # ! #?????????# #?? # ?????? | | # # ! #?????????# #???!! ?? + ????? | | # # ! ! #?????????# #????? """?? "????? | | # ###########?????????# #??????""??? ?????? | | # ##########??????????# #???????"???# ??????? | | # # #??????????# #??????????????????????? | | # + ##!! ####+## #??????????????????????? | | # # ##!! #??????????????????????? | | # # ##[[ Y@#??????????????????????? | | # # ##[[ """ #??????????????????????? | | ##### ###### """ #??????????????????????? | | ????# #????# """ #??????????????????????? | | ????# #????# #??????????????????????? | | ????# #????# #??????????????????????? | | ????##########????# """ #??????????????????????? | | ??????????????????# """ #??????????????????????? | | ??????????????????? """ #??????????????????????? | | ?????????????????????? ???????????????????????? | | ??????????????????????? ???????????????????????? | | ???????????????????????###???????????????????????? | | ?????????????????????????????????????????????????? | | ?????????????????????????????????????????????????? | | ?????????????????????????????????????????????????? | | ?????????????????????????????????????????????????? | | ?????????????????????????????????????????????????? | | ?????????????????????????????????????????????????? | | ?????????????????????????????????????????????????? | | | | | | | | | | | | | +----------------------------------------------------+ Best States ------------- Heat Dissipation 28 Energy Generation 10 Energy Capacity 125 Matter Stores 265 Matter Capacity 300 Sight Range 16 Terrain Scan Density 10 Resistance: KI 20 Resistance: TH 20 Resistance: EX 20 Resistance: EM 20 Resistance: I 20 Resistance: S 20 Resistance: P 20 Evasion (%) 44 Targeting Accuracy 6 Offensive Hacking 10 Item Schematics ----------------- None Robot Schematics ------------------ None Fabricated ------------ Nothing Repaired ---------- Nothing Alien Tech Used ----------------- None Achievements -------------- None Challenges ------------ None Game ------ Seed HardcellTowerSteel Manual? 0 Play Time 00:08:39 Cumulative 6.4 hours Start 2025.06.05 @ 21:37:09 End 2025.06.05 @ 22:09:34 Sessions 3 Manual Loads 0 Difficulty Adventurer Special Mode None Game No. 15 Rogue 0 Adventurer 15 Explorer 0 Win Type - Total 0 Types 0/0/0/0/0/0/0/0/0/0 Lore% 2 Gallery% 10 Achievement% 14 Wizard Run 0 Options --------- Layout 1 ASCII 0 Keyboard 0 Movement Arrows Keybinds 0 Fullscreen 1 Font 36/Smallcaps Map View 50x43 Zoom Use 0% Tactical HUD 0 Map Filters NONE Filters NONE Steam 1 RUN: d75b5a2a-1663-48cf-a007-da3149b46b23